fUST/lending_fUST_20250526
["ID","MTS","AMOUNT","RATE_DAILY","PERIOD"]
[362362366,1748217050427,-500.0,0.00019637,2]
[362362367,1748217050436,-430.0,0.00019726,2]
[362362368,1748217050446,-430.0,0.00019726,2]
[362362369,1748217050456,-430.0,0.00019726,2]
[362362370,1748217050466,-430.0,0.00019726,2]
[362362371,1748217050483,-438.3216834,0.00019726,2]
[362362372,1748217050498,-530.0,0.00019726,2]
[362362373,1748217050513,-439.27862095,0.00019726,2]
[362362374,1748217050527,-430.0,0.00019726,2]
[362362375,1748217050540,-430.0,0.00019726,2]
[362362376,1748217050551,-430.0,0.00019726,2]
[362362377,1748217050561,-430.0,0.00019726,2]
[362362378,1748217050573,-430.0,0.00019726,2]
[362362379,1748217050586,-430.0,0.00019726,2]
[362362380,1748217050598,-550.0,0.00019726,2]
[362362381,1748217050610,-430.0,0.00019726,2]
[362362382,1748217050623,-430.0,0.00019726,2]
[362362383,1748217050636,-430.0,0.00019726,2]
[362362384,1748217050648,-430.0,0.00019726,2]
[362362385,1748217050661,-430.0,0.00019726,2]
[362362386,1748217050673,-430.0,0.00019726,2]
[362362387,1748217050685,-350.84481827,0.00019726,2]
[362362388,1748217050698,-430.0,0.00019726,2]
[362362389,1748217050711,-430.0,0.00019726,2]
[362362390,1748217050724,-430.0,0.00019726,2]
[362362391,1748217050736,-430.0,0.00019726,2]
[362362392,1748217050748,-430.0,0.00019726,2]
[362362393,1748217050761,-430.0,0.00019726,2]
[362362394,1748217050773,-573.62,0.00019726,2]
[362362395,1748217050786,-430.0,0.00019726,2]
[362362396,1748217050798,-418.78197573,0.00019726,2]
[362362397,1748217050809,-430.0,0.00019726,2]
[362362398,1748217050823,-430.0,0.00019726,2]
[362362399,1748217050835,-490.0,0.00019726,2]
[362362400,1748217050848,-430.0,0.00019726,2]
[362362401,1748217050860,-430.0,0.00019726,2]
[362362402,1748217050872,-430.0,0.00019726,2]
[362362403,1748217050883,-430.0,0.00019726,2]
[362362404,1748217050894,-430.0,0.00019726,2]
[362362405,1748217050904,-430.0,0.00019726,2]
[362362406,1748217050918,-430.0,0.00019726,2]
[362362407,1748217050929,-430.0,0.00019726,2]
[362362408,1748217050940,-430.0,0.00019726,2]
[362362409,1748217050952,-177.22724972,0.00019726,2]
[362362410,1748217050965,-430.0,0.00019726,2]
[362362411,1748217050977,-430.0,0.00019726,2]
[362362412,1748217050990,-430.0,0.00019726,2]
[362362413,1748217051003,-430.0,0.00019726,2]
[362362414,1748217051015,-500.0,0.00019726,2]
[362362415,1748217051032,-430.0,0.00019726,2]
[362362416,1748217051045,-430.0,0.00019726,2]
[362362417,1748217051059,-430.0,0.00019726,2]
[362362418,1748217051071,-430.0,0.00019726,2]
[362362419,1748217051085,-430.0,0.00019726,2]
[362362420,1748217051097,-430.0,0.00019726,2]
[362362421,1748217051109,-430.0,0.00019726,2]
[362362422,1748217051120,-430.0,0.00019726,2]
[362362423,1748217051130,-430.0,0.00019726,2]
[362362424,1748217051141,-430.0,0.00019726,2]
[362362425,1748217051152,-430.0,0.00019726,2]
[362362426,1748217051169,-430.0,0.00019726,2]
[362362427,1748217051183,-430.0,0.00019726,2]
[362362428,1748217051195,-430.0,0.00019726,2]
[362362429,1748217051209,-430.0,0.00019726,2]
[362362430,1748217051220,-430.0,0.00019726,2]
[362362431,1748217051231,-439.57,0.00019726,2]
[362362432,1748217051243,-430.0,0.00019726,2]
[362362433,1748217051255,-430.0,0.00019726,2]
[362362434,1748217051267,-430.0,0.00019726,2]
[362362435,1748217051280,-430.0,0.00019726,2]
[362362436,1748217051293,-430.0,0.00019726,2]
[362362437,1748217051304,-430.0,0.00019726,2]
[362362438,1748217051315,-430.0,0.00019726,2]
[362362439,1748217051326,-430.0,0.00019726,2]
[362362440,1748217051336,-430.0,0.00019726,2]
[362362441,1748217051348,-430.0,0.00019726,2]
[362362442,1748217051359,-380.57029281,0.00019726,2]
[362362443,1748217051371,-430.0,0.00019726,2]
[362362444,1748217051383,-430.0,0.00019726,2]
[362362445,1748217051394,-430.0,0.00019726,2]
[362362446,1748217051405,-430.0,0.00019726,2]
[362362447,1748217051419,-430.0,0.00019726,2]
[362362448,1748217051430,-430.0,0.00019726,2]
[362362449,1748217051441,-430.0,0.00019726,2]
[362362450,1748217051452,-502.68,0.00019726,2]
[362362451,1748217051463,-430.0,0.00019726,2]
[362362452,1748217051474,-430.0,0.00019726,2]
[362362453,1748217051485,-430.0,0.00019726,2]
[362362454,1748217051496,-430.0,0.00019726,2]
[362362455,1748217051507,-430.0,0.00019726,2]
[362362456,1748217051520,-430.0,0.00019726,2]
[362362457,1748217051533,-430.0,0.00019726,2]
[362362458,1748217051544,-430.0,0.00019726,2]
[362362459,1748217051555,-430.0,0.00019726,2]
[362362460,1748217051567,-430.0,0.00019726,2]
[362362461,1748217051580,-430.0,0.00019726,2]
[362362462,1748217051591,-430.0,0.00019726,2]
[362362463,1748217051602,-430.0,0.00019726,2]
[362362464,1748217051614,-430.0,0.00019726,2]
[362362465,1748217051625,-288.9752149,0.00019763,2]
[362362466,1748217051637,-211.36466202,0.00019909,2]
[362362467,1748217051648,-160.0,0.00019995,2]
[362362468,1748217051660,-894.64583333,0.00019995,2]
[362362469,1748217051672,-160.0,0.00019995,2]
[362362470,1748217051684,-12652.24558203,0.00019995,2]
[362362471,1748217051695,-423.00916439,0.00019995,2]
[362362472,1748217051707,-160.0,0.00019995,2]
[362362473,1748217051718,-229.13142565,0.00019995,2]
[362362474,1748217051729,-430.0,0.0002,2]
[362362475,1748217051740,-430.0,0.0002,2]
[362362476,1748217051751,-350.0,0.0002,2]
[362362477,1748217051763,-550.0,0.0002,2]
[362362478,1748217051774,-319.74,0.0002,2]
[362362479,1748217051786,-152.15,0.0002,2]
[362362480,1748217051798,-430.0,0.0002,2]
[362362481,1748217051809,-430.0,0.0002,2]
[362362482,1748217051820,-430.0,0.0002,2]
[362362483,1748217051831,-430.0,0.0002,2]
[362362484,1748217051843,-450.0,0.0002,2]
[362362485,1748217051854,-430.0,0.0002,2]
[362362486,1748217051865,-546.28,0.0002,2]
[362362487,1748217051877,-430.0,0.0002,2]
[362362488,1748217051888,-430.0,0.0002,2]
[362362489,1748217051899,-430.0,0.0002,2]
[362362490,1748217051910,-430.0,0.0002,2]
[362362491,1748217051922,-430.0,0.0002,2]
[362362492,1748217051933,-430.0,0.0002,2]
[362362493,1748217051944,-430.0,0.0002,2]
[362362494,1748217051956,-430.0,0.0002,2]
[362362495,1748217051967,-430.0,0.0002,2]
[362362496,1748217051978,-207.11079253,0.0002,2]
[362362497,1748217051989,-430.0,0.0002,2]
[362362498,1748217052000,-430.0,0.0002,2]
[362362499,1748217052012,-430.0,0.0002,2]
[362362500,1748217052025,-430.0,0.0002,2]
[362362501,1748217052036,-430.0,0.0002,2]
[362362502,1748217052048,-430.0,0.0002,2]
[362362503,1748217052059,-430.0,0.0002,2]
[362362504,1748217052071,-406.19822945,0.0002,2]
[362362505,1748217052082,-500.0,0.0002,2]
[362362506,1748217052093,-430.0,0.0002,2]
[362362507,1748217052105,-554.33519004,0.0002,2]
[362362508,1748217052117,-430.0,0.0002,2]
[362362509,1748217052128,-430.0,0.0002,2]
[362362510,1748217052140,-430.0,0.0002,2]
[362362511,1748217052151,-430.0,0.0002,2]
[362362512,1748217052329,-430.0,0.0002,2]
[362362513,1748217052346,-430.0,0.0002,2]
[362362514,1748217052356,-430.0,0.0002,2]
[362362515,1748217052367,-430.0,0.0002,2]
[362362516,1748217052377,-430.0,0.0002,2]
[362362517,1748217052386,-430.0,0.0002,2]
[362362518,1748217052396,-430.0,0.0002,2]
[362362519,1748217052407,-430.0,0.0002,2]
[362362520,1748217052417,-430.0,0.0002,2]
[362362521,1748217052427,-439.57,0.0002,2]
[362362522,1748217052436,-430.0,0.0002,2]
[362362523,1748217052446,-430.0,0.0002,2]
[362362524,1748217052455,-430.0,0.0002,2]
[362362525,1748217052466,-430.0,0.0002,2]
[362362526,1748217052475,-430.0,0.0002,2]
[362362527,1748217052484,-430.0,0.0002,2]
[362362528,1748217052494,-430.0,0.0002,2]
[362362529,1748217052503,-430.0,0.0002,2]
[362362530,1748217052513,-430.0,0.0002,2]
[362362531,1748217052523,-430.0,0.0002,2]
[362362532,1748217052532,-430.0,0.0002,2]
[362362533,1748217052542,-430.0,0.0002,2]
[362362534,1748217052552,-430.0,0.0002,2]
[362362535,1748217052562,-430.0,0.0002,2]
[362362536,1748217052572,-430.0,0.0002,2]
[362362537,1748217052582,-430.0,0.0002,2]
[362362538,1748217052594,-502.68,0.0002,2]
[362362539,1748217052603,-430.0,0.0002,2]
[362362540,1748217052614,-430.0,0.0002,2]
[362362541,1748217052623,-430.0,0.0002,2]
[362362542,1748217052633,-430.0,0.0002,2]
[362362543,1748217052643,-430.0,0.0002,2]
[362362544,1748217052653,-430.0,0.0002,2]
[362362545,1748217052663,-430.0,0.0002,2]
[362362546,1748217052673,-430.0,0.0002,2]
[362362547,1748217052683,-430.0,0.0002,2]
[362362548,1748217052693,-430.0,0.0002,2]
[362362549,1748217052703,-430.0,0.0002,2]
[362362550,1748217052714,-430.0,0.0002,2]
[362362551,1748217052725,-430.0,0.0002,2]
[362362552,1748217052736,-430.0,0.0002,2]
[362362553,1748217052746,-500.0,0.00020064,2]
[362362554,1748217052755,-288.9752149,0.00020105,2]
[362362555,1748217052766,-1000.0,0.00020185,2]
[362362556,1748217052776,-259.284603,0.00020187,2]
[362362557,1748217052785,-430.0,0.00020273,2]
[362362558,1748217052795,-430.0,0.00020273,2]
[362362559,1748217052804,-430.0,0.00020273,2]
[362362560,1748217052814,-430.0,0.00020273,2]
[362362561,1748217052827,-430.0,0.00020273,2]
[362362562,1748217052836,-430.0,0.00020273,2]
[362362563,1748217052847,-430.0,0.00020273,2]
[362362564,1748217052856,-430.0,0.00020273,2]
[362362565,1748217052866,-430.0,0.00020273,2]
[362362566,1748217052876,-455.45174444,0.00020273,2]
[362362567,1748217052886,-430.0,0.00020273,2]
[362362568,1748217052895,-430.0,0.00020273,2]
[362362569,1748217052906,-430.0,0.00020273,2]
[362362570,1748217052916,-430.0,0.00020273,2]
[362362571,1748217052926,-430.0,0.00020273,2]
[362362572,1748217052936,-604.85,0.00020273,2]
[362362573,1748217052945,-430.0,0.00020273,2]
[362362574,1748217052955,-430.0,0.00020273,2]
[362362575,1748217052966,-430.0,0.00020273,2]
[362362576,1748217052976,-430.0,0.00020273,2]
[362362577,1748217052987,-430.0,0.00020273,2]
[362362578,1748217052999,-430.0,0.00020273,2]
[362362579,1748217053008,-430.0,0.00020273,2]
[362362580,1748217053020,-430.0,0.00020273,2]
[362362581,1748217053036,-430.0,0.00020273,2]
[362362582,1748217053047,-430.0,0.00020273,2]
[362362583,1748217053059,-430.0,0.00020273,2]
[362362584,1748217053072,-430.0,0.00020273,2]
[362362585,1748217053083,-430.0,0.00020273,2]
[362362586,1748217053093,-439.57,0.00020273,2]
[362362587,1748217053103,-430.0,0.00020273,2]
[362362588,1748217053114,-430.0,0.00020273,2]
[362362589,1748217053123,-439.09272146,0.00020273,2]
[362362590,1748217053132,-430.0,0.00020273,2]
[362362591,1748217053143,-430.0,0.00020273,2]
[362362592,1748217053154,-430.0,0.00020273,2]
[362362593,1748217053164,-430.0,0.00020273,2]
[362362594,1748217053176,-430.0,0.00020273,2]
[362362595,1748217053185,-430.0,0.00020273,2]
[362362596,1748217053194,-430.0,0.00020273,2]
[362362597,1748217053203,-430.0,0.00020273,2]
[362362598,1748217053212,-430.0,0.00020273,2]
[362362599,1748217053223,-430.0,0.00020273,2]
[362362600,1748217053234,-430.0,0.00020273,2]
[362362601,1748217053244,-430.0,0.00020273,2]
[362362602,1748217053254,-430.0,0.00020273,2]
[362362603,1748217053265,-502.68,0.00020273,2]
[362362604,1748217053274,-430.0,0.00020273,2]
[362362605,1748217053284,-430.0,0.00020273,2]
[362362606,1748217053295,-430.0,0.00020273,2]
[362362607,1748217053305,-430.0,0.00020273,2]
[362362608,1748217053316,-430.0,0.00020273,2]
[362362609,1748217053326,-430.0,0.00020273,2]
[362362610,1748217053338,-430.0,0.00020273,2]
[362362611,1748217053348,-430.0,0.00020273,2]
[362362612,1748217053358,-430.0,0.00020273,2]
[362362613,1748217053369,-430.0,0.00020273,2]
[362362614,1748217053380,-430.0,0.00020273,2]
[362362615,1748217053392,-401.61391532,0.00020273,2]
[362362616,1748217053401,-430.0,0.00020273,2]
[362362617,1748217053411,-430.0,0.00020273,2]
[362362618,1748217053422,-288.9752149,0.00020447,2]
[362362619,1748217053432,-406.55,0.0002054,2]
[362362620,1748217053443,-430.0,0.00020547,2]
[362362621,1748217053454,-430.0,0.00020547,2]
[362362622,1748217053464,-160.0,0.00020547,2]
[362362623,1748217053474,-430.0,0.00020547,2]
[362362624,1748217053485,-430.0,0.00020547,2]
[362362625,1748217053495,-430.0,0.00020547,2]
[362362626,1748217053505,-430.0,0.00020547,2]
[362362627,1748217053514,-430.0,0.00020547,2]
[362362628,1748217053524,-430.0,0.00020547,2]
[362362629,1748217053534,-188.28,0.00020547,2]
[362362630,1748217053543,-239.16964589,0.00020547,2]
[362362631,1748217053553,-430.0,0.00020547,2]
[362362632,1748217053563,-430.0,0.00020547,2]
[362362633,1748217053572,-430.0,0.00020547,2]
[362362634,1748217053582,-430.0,0.00020547,2]
[362362635,1748217053591,-430.0,0.00020547,2]
[362362636,1748217053600,-430.0,0.00020547,2]
[362362637,1748217053610,-430.0,0.00020547,2]
[362362638,1748217053620,-430.0,0.00020547,2]
[362362639,1748217053629,-430.0,0.00020547,2]
[362362640,1748217053640,-430.0,0.00020547,2]
[362362641,1748217053649,-430.0,0.00020547,2]
[362362642,1748217053659,-430.0,0.00020547,2]
[362362643,1748217053669,-430.0,0.00020547,2]
[362362644,1748217053678,-430.0,0.00020547,2]
[362362645,1748217053688,-430.0,0.00020547,2]
[362362646,1748217053698,-430.0,0.00020547,2]
[362362647,1748217053709,-430.0,0.00020547,2]
[362362648,1748217053719,-439.57,0.00020547,2]
[362362649,1748217053731,-430.0,0.00020547,2]
[362362650,1748217053742,-430.0,0.00020547,2]
[362362651,1748217053751,-430.0,0.00020547,2]
[362362652,1748217053761,-430.0,0.00020547,2]
[362362653,1748217053771,-430.0,0.00020547,2]
[362362654,1748217053780,-210.04462317,0.00020547,2]
[362362655,1748217087376,500.0,0.000229,120]
[362362659,1748217433394,-231.28247216,0.00013562,2]
[362362660,1748217436176,-191.89801977,0.00013562,2]
[362362661,1748217438606,-154.60661659,0.00013562,2]
[362362662,1748217442681,-154.60661659,0.00013562,2]
[362362663,1748217445502,-154.60661659,0.00013562,2]
[362362664,1748217448827,-154.60661659,0.00013562,2]
[362362665,1748217450347,-154.60661659,0.00013562,2]
[362362666,1748217452531,-210.27881232,0.00013562,2]
[362362667,1748217454170,-273.52668646,0.00013562,2]
[362362668,1748217457663,-210.90385956,0.00013562,2]
[362362669,1748217459187,-254.21037318,0.00013562,2]
[362362670,1748217461870,-226.38078674,0.00013562,2]
[362362671,1748217463500,-389.01657804,0.00013562,2]
[362362672,1748217467210,-243.21607462,0.00013562,2]
[362362673,1748217470248,-185.98937828,0.00013562,2]
[362362674,1748217474095,-192.96784787,0.00013562,2]
[362362675,1748217477433,-1016.58793127,0.00013562,2]
[362362676,1748217480795,-182.06678773,0.00013562,2]
[362362677,1748217482941,-287.31669819,0.00013562,2]
[362362678,1748217485673,-131.32461086,0.00013562,2]
[362362679,1748217491856,-285.17676102,0.00013562,2]
[362362680,1748217494705,-462.16969954,0.00013562,2]
[362362681,1748217497360,-163.7790474,0.00013562,2]
[362362682,1748217500562,-256.76492898,0.00013562,2]
[362362683,1748217502835,-181.0,0.00013562,2]
[362362684,1748217505038,-156.7796826,0.00013562,2]
[362362686,1748217507515,-241.33183892,0.00013562,2]
[362362687,1748217509046,-241.33183892,0.00013562,2]
[362362688,1748217510630,-214.438801,0.00013562,2]
[362362689,1748217514160,-156.7796826,0.00013562,2]
[362362690,1748217518313,-214.438801,0.00013562,2]
[362362691,1748217521443,-152.0,0.00013562,2]
[362362692,1748217523506,-211.17797893,0.00013562,2]
[362362693,1748217525663,-723.75722024,0.00013562,2]
[362362694,1748217528547,-223.5143695,0.00013562,2]
[362362695,1748217530563,-239.19050477,0.00013562,2]
[362362696,1748217533418,-192.15618949,0.00013562,2]
[362362697,1748217535604,-313.86544508,0.00013562,2]
[362362698,1748217539824,-208.71843324,0.00013562,2]
[362362699,1748217541342,-161.62877677,0.00013562,2]
[362362700,1748217550878,-1282.0,0.00013562,2]
[362362701,1748217617491,-1974.0,0.00013562,2]
[362362702,1748217632644,200.0,0.00024536,120]
[362362703,1748217682090,-23.27053167,0.00013562,2]
[362362704,1748217682113,-233.356142,0.00013699,2]
[362362705,1748217682139,-249.47,0.0001413,2]
[362362706,1748217682165,-374.21,0.00015307,2]
[362362707,1748217682192,-379.69332633,0.00016485,2]
[362362708,1748217691326,200.0,0.00023395,120]
[362362709,1748217751914,-212.99,0.00014149,2]
[362362710,1748217751939,-319.48,0.00015328,2]
[362362711,1748217751965,-413.53,0.00016507,2]
[362362712,1748217811052,200.0,0.00023883,120]
[362362713,1748217818365,-178.59,0.00014146,2]
[362362714,1748217818389,-267.88,0.00015325,2]
[362362715,1748217818413,-353.53,0.00016504,2]
[362362716,1748217871552,200.0,0.00023956,120]
[362362717,1748217882102,-224.24,0.00015326,2]
[362362718,1748217882126,-221.76,0.00016505,2]
[362362719,1748217932092,200.0,0.00022993,120]
[362362720,1748217949998,-169.518205,0.00018177,2]
[362362721,1748217950021,-154.95292979,0.000189,2]
[362362722,1748217950045,-300.0,0.00019176,2]
[362362723,1748217950068,-11016.57474829,0.00019177,2]
[362362724,1748217950092,-500.0,0.00019177,2]
[362362725,1748217950115,-500.0,0.00019177,2]
[362362726,1748217950140,-500.0,0.00019177,2]
[362362727,1748217950166,-500.0,0.00019177,2]
[362362728,1748217950191,-500.0,0.00019177,2]
[362362729,1748217950218,-500.0,0.00019177,2]
[362362730,1748217950243,-500.0,0.00019177,2]
[362362731,1748217950268,-500.0,0.00019177,2]
[362362732,1748217950293,-178.75342936,0.00019177,2]
[362362733,1748217950320,-500.0,0.00019177,2]
[362362734,1748217950350,-500.0,0.00019177,2]
[362362735,1748217950374,-430.0,0.00019178,2]
[362362736,1748217950396,-430.0,0.00019178,2]
[362362737,1748217950421,-430.0,0.00019178,2]
[362362738,1748217950444,-430.0,0.00019178,2]
[362362739,1748217950467,-430.0,0.00019178,2]
[362362740,1748217950491,-430.0,0.00019178,2]
[362362741,1748217950518,-430.0,0.00019178,2]
[362362742,1748217950543,-430.0,0.00019178,2]
[362362743,1748217950567,-134.20068756,0.00019178,2]
[362362744,1748218015182,-199.92,0.00015318,2]
[362362745,1748218015210,-266.56,0.00016497,2]
[362362746,1748218015235,-33.52,0.00017675,2]
[362362748,1748218081047,-172.64,0.00015321,2]
[362362749,1748218081072,-230.19,0.00016499,2]
[362362750,1748218081096,-97.17,0.00017678,2]
[362362751,1748218111608,200.0,0.00024146,120]
[362362758,1748218231129,200.0,0.00023835,120]
[362362803,1748218231929,-193.83,0.00016494,2]
[362362805,1748218231939,-242.28,0.00017673,2]
[362362807,1748218231950,-290.74,0.00018851,2]
[362362809,1748218231959,-6883.64144996,0.00019176,2]
[362362814,1748218231993,-2366.97080641,0.00019176,2]
[362362831,1748218232152,-14166.1,0.00019176,2]
[362362834,1748218232164,-13407.15491517,0.00019176,2]
[362362836,1748218232176,-1070.6,0.00019176,2]
[362362910,1748218237828,-41.86938075,0.00019176,2]
[362362911,1748218237841,-563.5667068,0.00019176,2]
[362362912,1748218237853,-464.3059366,0.00019176,2]
[362362913,1748218237865,-500.0,0.00019176,2]
[362362914,1748218237878,-277.01640982,0.00019176,2]
[362362915,1748218237891,-500.0,0.00019177,2]
[362362916,1748218237902,-206.51191548,0.00019177,2]
[362362917,1748218237915,-500.0,0.00019177,2]
[362362918,1748218237927,-500.0,0.00019177,2]
[362362919,1748218237941,-500.0,0.00019177,2]
[362362920,1748218237954,-282.22740132,0.00019177,2]
[362362921,1748218237965,-500.0,0.00019178,2]
[362362922,1748218237977,-500.0,0.00019178,2]
[362362923,1748218237988,-11.59297451,0.00019178,2]
[362363172,1748218240686,-84.72650641,0.00019178,2]
[362363175,1748218240700,-403.68051908,0.00019178,2]
[362363177,1748218240712,-500.0,0.00019178,2]
[362363179,1748218240724,-320.18457926,0.00019178,2]
[362363415,1748218243153,-179.81542074,0.00019178,2]
[362363418,1748218243164,-298.21999601,0.00019178,2]
[362363421,1748218243178,-201.78000399,0.00019178,2]
[362363423,1748218243190,-500.0,0.00019178,2]
[362363425,1748218243202,-430.0,0.00019178,2]
[362363429,1748218243213,-430.0,0.00019178,2]
[362363432,1748218243224,-430.0,0.00019178,2]
[362363435,1748218243235,-430.0,0.00019178,2]
[362363437,1748218243246,-430.0,0.00019178,2]
[362363439,1748218243258,-430.0,0.00019178,2]
[362363442,1748218243269,-430.0,0.00019178,2]
[362363444,1748218243280,-400.0,0.00019178,2]
[362363446,1748218243291,-430.0,0.00019178,2]
[362363448,1748218243302,-430.0,0.00019178,2]
[362363451,1748218243313,-533.96976224,0.00019178,2]
[362363453,1748218243324,-430.0,0.00019178,2]
[362363455,1748218243335,-430.0,0.00019178,2]
[362363457,1748218243345,-430.0,0.00019178,2]
[362363459,1748218243354,-430.0,0.00019178,2]
[362363461,1748218243364,-430.0,0.00019178,2]
[362363463,1748218243374,-484.03973725,0.00019178,2]
[362363486,1748218243575,-430.0,0.00019178,2]
[362363489,1748218243597,-430.0,0.00019178,2]
[362363491,1748218243612,-430.0,0.00019178,2]
[362363493,1748218243623,-500.0,0.00019178,2]
[362363495,1748218243633,-500.0,0.00019178,2]
[362363497,1748218243644,-500.0,0.00019178,2]
[362363499,1748218243653,-430.0,0.00019178,2]
[362363501,1748218243664,-430.0,0.00019178,2]
[362363504,1748218243674,-430.0,0.00019178,2]
[362363506,1748218243684,-430.0,0.00019178,2]
[362363508,1748218243694,-430.0,0.00019178,2]
[362363510,1748218243704,-430.0,0.00019178,2]
[362363512,1748218243715,-430.0,0.00019178,2]
[362363514,1748218243725,-430.0,0.00019178,2]
[362363516,1748218243735,-430.0,0.00019178,2]
[362363518,1748218243745,-430.0,0.00019178,2]
[362363520,1748218243755,-430.0,0.00019178,2]
[362363522,1748218243765,-430.0,0.00019178,2]
[362363524,1748218243775,-500.0,0.00019178,2]
[362363526,1748218243785,-500.0,0.00019178,2]
[362363528,1748218243795,-613.48,0.00019178,2]
[362363530,1748218243804,-430.0,0.00019178,2]
[362363532,1748218243814,-430.0,0.00019178,2]
[362363534,1748218243824,-430.0,0.00019178,2]
[362363536,1748218243834,-430.0,0.00019178,2]
[362363538,1748218243844,-430.0,0.00019178,2]
[362363540,1748218243853,-430.0,0.00019178,2]
[362363542,1748218243863,-430.0,0.00019178,2]
[362363544,1748218243873,-430.0,0.00019178,2]
[362363546,1748218243883,-430.0,0.00019178,2]
[362363549,1748218243893,-430.0,0.00019178,2]
[362363551,1748218243903,-431.56507979,0.00019178,2]
[362363553,1748218243912,-430.0,0.00019178,2]
[362363554,1748218243922,-430.0,0.00019178,2]
[362363557,1748218243932,-521.42349721,0.00019178,2]
[362363559,1748218243942,-430.0,0.00019178,2]
[362363561,1748218243952,-430.0,0.00019178,2]
[362363563,1748218243961,-430.0,0.00019178,2]
[362363565,1748218243971,-430.0,0.00019178,2]
[362363567,1748218243982,-430.0,0.00019178,2]
[362363569,1748218243991,-430.0,0.00019178,2]
[362363571,1748218244001,-430.0,0.00019178,2]
[362363573,1748218244012,-430.0,0.00019178,2]
[362363575,1748218244022,-444.74870409,0.00019178,2]
[362363577,1748218244032,-430.0,0.00019178,2]
[362363579,1748218244042,-430.0,0.00019178,2]
[362363581,1748218244052,-193.36386932,0.00019178,2]
[362363583,1748218244061,-490.0,0.00019178,2]
[362363585,1748218244072,-430.0,0.00019178,2]
[362363587,1748218244081,-569.24265012,0.00019178,2]
[362363589,1748218244090,-174.40956477,0.00019178,2]
[362363591,1748218244099,-430.0,0.00019178,2]
[362363593,1748218244110,-430.0,0.00019178,2]
[362363595,1748218244119,-430.0,0.00019178,2]
[362363597,1748218244129,-430.0,0.00019178,2]
[362363599,1748218244138,-430.0,0.00019178,2]
[362363600,1748218244149,-430.0,0.00019178,2]
[362363602,1748218244159,-430.0,0.00019178,2]
[362363604,1748218244168,-430.0,0.00019178,2]
[362363606,1748218244178,-430.0,0.00019178,2]
[362363608,1748218244188,-430.0,0.00019178,2]
[362363609,1748218244197,-430.0,0.00019178,2]
[362363610,1748218244207,-430.0,0.00019178,2]
[362363611,1748218244216,-430.0,0.00019178,2]
[362363612,1748218244226,-430.0,0.00019178,2]
[362363613,1748218244235,-430.0,0.00019178,2]
[362363614,1748218244244,-430.0,0.00019178,2]
[362363615,1748218244254,-430.0,0.00019178,2]
[362363616,1748218244263,-430.0,0.00019178,2]
[362363617,1748218244273,-187.60373835,0.00019178,2]
[362363618,1748218244283,-400.0,0.00019178,2]